[Event "*** Titled Tuesday Blitz"]
[Site "Chess.com"]
[Date "2020.12.01"]
[Round "7"]
[White "vanea_03"]
[Black "Beltraxtor"]
[Result "0-1"]
[WhiteElo "2718"]
[BlackElo "2576"]
[TimeControl "180+1"]
[EndTime "11:15:59 PST"]
[Termination "Beltraxtor won by checkmate"]

1. d4 {[%clk 0:03:00.9]} 1... d5 {[%clk 0:02:44.5]} 2. c4 {[%clk 0:03:00.4]}
2... c6 {[%clk 0:02:44.7]} 3. cxd5 {[%clk 0:03:00.3]} 3... cxd5 {[%clk
0:02:45.3]} 4. Bf4 {[%clk 0:03:00.9]} 4... Nf6 {[%clk 0:02:44.8]} 5. e3 {[%clk
0:03:01.6]} 5... Nc6 {[%clk 0:02:44.8]} 6. Bb5 {[%clk 0:03:02.2]} 6... Bd7
{[%clk 0:02:40.4]} 7. Nc3 {[%clk 0:03:02.4]} 7... e6 {[%clk 0:02:40.5]} 8. Bd3
{[%clk 0:02:59.1]} 8... Be7 {[%clk 0:02:37.5]} 9. h3 {[%clk 0:02:56.4]} 9... O-O
{[%clk 0:02:34.6]} 10. Nf3 {[%clk 0:02:54.5]} 10... Qb6 {[%clk 0:02:35]} 11. Qe2
{[%clk 0:02:42.5]} 11... Rfc8 {[%clk 0:02:33.1]} 12. O-O {[%clk 0:02:40]} 12...
Be8 {[%clk 0:02:30.5]} 13. Ne5 {[%clk 0:02:36.8]} 13... Nxe5 {[%clk 0:01:52]}
14. Bxe5 {[%clk 0:02:37.7]} 14... a6 {[%clk 0:01:46.6]} 15. Rac1 {[%clk
0:02:27.4]} 15... Qa5 {[%clk 0:01:41.6]} 16. Bb1 {[%clk 0:02:20.5]} 16... b5
{[%clk 0:01:39.3]} 17. a3 {[%clk 0:01:28.5]} 17... b4 {[%clk 0:01:35.8]} 18.
axb4 {[%clk 0:01:24.8]} 18... Qxb4 {[%clk 0:01:36.4]} 19. Bd3 {[%clk 0:01:18.5]}
19... a5 {[%clk 0:01:24.1]} 20. Rc2 {[%clk 0:01:10.6]} 20... a4 {[%clk
0:01:07.3]} 21. Rfc1 {[%clk 0:01:10.3]} 21... a3 {[%clk 0:01:05]} 22. Bxf6
{[%clk 0:00:49.2]} 22... Bxf6 {[%clk 0:00:36.3]} 23. Nxd5 {[%clk 0:00:39.9]}
23... Rxc2 {[%clk 0:00:35.6]} 24. Nxf6+ {[%clk 0:00:33.3]} 24... gxf6 {[%clk
0:00:35.3]} 25. Qxc2 {[%clk 0:00:23]} 25... axb2 {[%clk 0:00:32.1]} 26. Rb1
{[%clk 0:00:22.3]} 26... Ra1 {[%clk 0:00:25.1]} 27. Kh2 {[%clk 0:00:17.1]} 27...
Rxb1 {[%clk 0:00:17.7]} 28. Qxb1 {[%clk 0:00:18]} 28... Ba4 {[%clk 0:00:17.5]}
29. Bxh7+ {[%clk 0:00:15.4]} 29... Kf8 {[%clk 0:00:16.8]} 30. Bd3 {[%clk
0:00:14.8]} 30... f5 {[%clk 0:00:15.7]} 31. h4 {[%clk 0:00:14.2]} 31... Kg7
{[%clk 0:00:15.9]} 32. Kg3 {[%clk 0:00:11.1]} 32... Qc3 {[%clk 0:00:16]} 33. h5
{[%clk 0:00:08.8]} 33... Bb3 {[%clk 0:00:15.9]} 34. f3 {[%clk 0:00:07.3]} 34...
Qc1 {[%clk 0:00:15.4]} 35. Kf4 {[%clk 0:00:06.4]} 35... Kf6 {[%clk 0:00:14.7]}
36. g3 {[%clk 0:00:06]} 36... Qc7# {[%clk 0:00:13.6]} 0-1

[Event "*** Titled Tuesday Blitz"]
[Site "Chess.com"]
[Date "2020.12.01"]
[Round "7"]
[White "anon102030"]
[Black "MatyChess1"]
[Result "1/2-1/2"]
[WhiteElo "2714"]
[BlackElo "2565"]
[TimeControl "180+1"]
[EndTime "11:15:59 PST"]
[Termination "Game drawn by repetition"]

1. e4 {[%clk 0:03:00.9]} 1... c5 {[%clk 0:02:58.3]} 2. Nc3 {[%clk 0:03:00.1]}
2... Nc6 {[%clk 0:02:57.5]} 3. g3 {[%clk 0:03:00.1]} 3... g6 {[%clk 0:02:57.7]}
4. Bg2 {[%clk 0:03:00.6]} 4... Bg7 {[%clk 0:02:58.6]} 5. d3 {[%clk 0:03:00.2]}
5... d6 {[%clk 0:02:59.1]} 6. Be3 {[%clk 0:03:00.5]} 6... b6 {[%clk 0:02:59.5]}
7. Nf3 {[%clk 0:02:56.3]} 7... Nd4 {[%clk 0:02:54.3]} 8. O-O {[%clk 0:02:52.1]}
8... Bb7 {[%clk 0:02:54.5]} 9. Bxd4 {[%clk 0:02:46.6]} 9... cxd4 {[%clk
0:02:54.6]} 10. Ne2 {[%clk 0:02:46.9]} 10... e5 {[%clk 0:02:54.5]} 11. c3 {[%clk
0:02:46.9]} 11... dxc3 {[%clk 0:02:55.4]} 12. Qa4+ {[%clk 0:02:42.3]} 12... Qd7
{[%clk 0:02:51.5]} 13. Qxd7+ {[%clk 0:02:42.4]} 13... Kxd7 {[%clk 0:02:52.4]}
14. Nxc3 {[%clk 0:02:43]} 14... Ne7 {[%clk 0:02:48.5]} 15. Rfd1 {[%clk
0:02:42.1]} 15... Rhd8 {[%clk 0:02:29.5]} 16. Rac1 {[%clk 0:02:41.2]} 16... Ke8
{[%clk 0:01:30.8]} 17. d4 {[%clk 0:02:38.7]} 17... exd4 {[%clk 0:01:29.4]} 18.
Nxd4 {[%clk 0:02:39.6]} 18... a6 {[%clk 0:01:23.5]} 19. Rc2 {[%clk 0:02:21.4]}
19... d5 {[%clk 0:01:08]} 20. Nxd5 {[%clk 0:02:13.1]} 20... Nxd5 {[%clk
0:01:08.9]} 21. exd5 {[%clk 0:02:13.8]} 21... Bxd5 {[%clk 0:01:05.1]} 22. Re2+
{[%clk 0:01:33.2]} 22... Kf8 {[%clk 0:01:00]} 23. Red2 {[%clk 0:01:33.8]} 23...
Bxg2 {[%clk 0:00:19.3]} 24. Ne6+ {[%clk 0:01:32.4]} 24... fxe6 {[%clk
0:00:20.2]} 25. Rxd8+ {[%clk 0:01:32.7]} 25... Rxd8 {[%clk 0:00:19.9]} 26. Rxd8+
{[%clk 0:01:33.6]} 26... Ke7 {[%clk 0:00:20.7]} 27. Rg8 {[%clk 0:01:25.5]} 27...
Kf7 {[%clk 0:00:20.6]} 28. Rxg7+ {[%clk 0:01:11.3]} 28... Kxg7 {[%clk
0:00:21.5]} 29. Kxg2 {[%clk 0:01:12]} 29... Kf6 {[%clk 0:00:22.2]} 30. Kf3
{[%clk 0:01:11.6]} 30... Ke5 {[%clk 0:00:22]} 31. Ke3 {[%clk 0:01:05.4]} 31...
Kd5 {[%clk 0:00:22.2]} 32. Kf4 {[%clk 0:00:59.8]} 32... h6 {[%clk 0:00:19]} 33.
Ke3 {[%clk 0:00:50.6]} 33... a5 {[%clk 0:00:15.3]} 34. h4 {[%clk 0:00:50.6]}
34... b5 {[%clk 0:00:14.8]} 35. Kd3 {[%clk 0:00:47.8]} 35... Ke5 {[%clk
0:00:09.5]} 36. f3 {[%clk 0:00:43.8]} 36... Kd5 {[%clk 0:00:09.7]} 37. Ke3
{[%clk 0:00:39.8]} 37... Ke5 {[%clk 0:00:08.3]} 38. Kd3 {[%clk 0:00:22]} 38...
Kd5 {[%clk 0:00:08.6]} 39. Ke3 {[%clk 0:00:12]} 39... Ke5 {[%clk 0:00:08.5]} 40.
Kd3 {[%clk 0:00:11.7]} 1/2-1/2

[Event "*** Titled Tuesday Blitz"]
[Site "Chess.com"]
[Date "2020.12.01"]
[Round "7"]
[White "PenguinPacks"]
[Black "azikom"]
[Result "0-1"]
[WhiteElo "2400"]
[BlackElo "2637"]
[TimeControl "180+1"]
[EndTime "11:16:00 PST"]
[Termination "azikom won by resignation"]

1. d4 {[%clk 0:03:00]} 1... d5 {[%clk 0:02:59.4]} 2. Bf4 {[%clk 0:03:00.1]} 2...
c6 {[%clk 0:02:58.7]} 3. c4 {[%clk 0:02:58.4]} 3... dxc4 {[%clk 0:02:57.9]} 4.
e3 {[%clk 0:02:52.1]} 4... Nf6 {[%clk 0:02:42.1]} 5. Bxc4 {[%clk 0:02:51.1]}
5... e6 {[%clk 0:02:31.8]} 6. Nc3 {[%clk 0:02:48.7]} 6... Be7 {[%clk 0:02:32.2]}
7. h3 {[%clk 0:02:47.3]} 7... O-O {[%clk 0:02:32.5]} 8. Nf3 {[%clk 0:02:47.5]}
8... b6 {[%clk 0:02:31.8]} 9. Ne5 {[%clk 0:02:46.7]} 9... Bb7 {[%clk 0:02:32]}
10. O-O {[%clk 0:02:46.9]} 10... c5 {[%clk 0:02:30.7]} 11. Qd3 {[%clk 0:02:34]}
11... Nc6 {[%clk 0:02:22.5]} 12. Rfd1 {[%clk 0:02:30.2]} 12... cxd4 {[%clk
0:02:14.8]} 13. exd4 {[%clk 0:02:28.7]} 13... Nb4 {[%clk 0:02:13.4]} 14. Qe2
{[%clk 0:02:26.4]} 14... Nbd5 {[%clk 0:02:13]} 15. Bg3 {[%clk 0:02:21.3]} 15...
Rc8 {[%clk 0:02:11.8]} 16. Rac1 {[%clk 0:02:19.5]} 16... Nxc3 {[%clk 0:02:06.8]}
17. bxc3 {[%clk 0:02:18.5]} 17... Nd5 {[%clk 0:01:59.1]} 18. Re1 {[%clk
0:02:04.7]} 18... Bg5 {[%clk 0:01:45.4]} 19. Rc2 {[%clk 0:02:02]} 19... Bh4
{[%clk 0:01:42.4]} 20. Bh2 {[%clk 0:01:59.2]} 20... Bf6 {[%clk 0:01:41.4]} 21.
Qd3 {[%clk 0:01:29]} 21... g6 {[%clk 0:01:40.8]} 22. Bb3 {[%clk 0:01:25.7]}
22... Bg7 {[%clk 0:01:39.8]} 23. a3 {[%clk 0:00:55.9]} 23... Qg5 {[%clk
0:01:38.5]} 24. Nf3 {[%clk 0:00:43.6]} 24... Qf5 {[%clk 0:01:31.1]} 25. Qd2
{[%clk 0:00:38.3]} 25... Rfd8 {[%clk 0:01:28.7]} 26. Rcc1 {[%clk 0:00:36.1]}
26... Ne7 {[%clk 0:01:20.6]} 27. Ne5 {[%clk 0:00:26.5]} 27... Bd5 {[%clk
0:00:38.5]} 28. Bc2 {[%clk 0:00:16]} 28... Qh5 {[%clk 0:00:36.8]} 29. Bd1 {[%clk
0:00:14.6]} 29... Bh6 {[%clk 0:00:27.6]} 30. f4 {[%clk 0:00:09.6]} 30... Qh4
{[%clk 0:00:25.1]} 31. Ng4 {[%clk 0:00:06.4]} 31... Bg7 {[%clk 0:00:23.7]} 32.
Qe3 {[%clk 0:00:06.2]} 32... Nf5 {[%clk 0:00:23.4]} 33. Qe2 {[%clk 0:00:04.4]}
33... Qe7 {[%clk 0:00:22.6]} 34. Nf2 {[%clk 0:00:02.8]} 34... Qxa3 {[%clk
0:00:21.6]} 35. Qg4 {[%clk 0:00:02.9]} 35... Qxc1 {[%clk 0:00:19.9]} 36. Nd3
{[%clk 0:00:03.8]} 36... Qd2 {[%clk 0:00:19.5]} 0-1

[Event "*** Titled Tuesday Blitz"]
[Site "Chess.com"]
[Date "2020.12.01"]
[Round "7"]
[White "Hypercar"]
[Black "Grammnik"]
[Result "0-1"]
[WhiteElo "2462"]
[BlackElo "2365"]
[TimeControl "180+1"]
[EndTime "11:16:02 PST"]
[Termination "Grammnik won by checkmate"]

1. d4 {[%clk 0:03:00.9]} 1... d5 {[%clk 0:02:59.5]} 2. c4 {[%clk 0:03:01]} 2...
c6 {[%clk 0:02:59.4]} 3. cxd5 {[%clk 0:03:00.5]} 3... cxd5 {[%clk 0:02:59.3]} 4.
Nf3 {[%clk 0:03:01.3]} 4... Nf6 {[%clk 0:02:58.8]} 5. Bd2 {[%clk 0:03:01.9]}
5... Nc6 {[%clk 0:02:56.4]} 6. Nc3 {[%clk 0:03:01.7]} 6... Bf5 {[%clk
0:02:55.1]} 7. e3 {[%clk 0:03:00.1]} 7... e6 {[%clk 0:02:54.8]} 8. Be2 {[%clk
0:02:59.3]} 8... Bd6 {[%clk 0:02:54.7]} 9. O-O {[%clk 0:02:59.8]} 9... O-O
{[%clk 0:02:54]} 10. Na4 {[%clk 0:03:00.1]} 10... Rc8 {[%clk 0:02:53.2]} 11. Rc1
{[%clk 0:02:59.6]} 11... Re8 {[%clk 0:02:52.4]} 12. Nc5 {[%clk 0:02:59.2]} 12...
Qe7 {[%clk 0:02:50.3]} 13. h3 {[%clk 0:02:58]} 13... Rc7 {[%clk 0:02:48]} 14. b4
{[%clk 0:02:56.9]} 14... Ne4 {[%clk 0:02:35.7]} 15. a4 {[%clk 0:02:45]} 15... h6
{[%clk 0:02:27.1]} 16. Bb5 {[%clk 0:02:38]} 16... Bxc5 {[%clk 0:02:06.9]} 17.
bxc5 {[%clk 0:02:32.8]} 17... f6 {[%clk 0:01:57.2]} 18. Qb3 {[%clk 0:02:28.2]}
18... Bg6 {[%clk 0:01:46.4]} 19. Rfd1 {[%clk 0:02:25.9]} 19... Bh5 {[%clk
0:01:45.6]} 20. Be2 {[%clk 0:02:17.7]} 20... g5 {[%clk 0:01:45.4]} 21. Be1
{[%clk 0:02:14.1]} 21... Qg7 {[%clk 0:01:42.6]} 22. g4 {[%clk 0:02:02.3]} 22...
Bg6 {[%clk 0:01:40.9]} 23. Nh2 {[%clk 0:02:02.9]} 23... f5 {[%clk 0:01:35]} 24.
f3 {[%clk 0:02:00.5]} 24... Nf6 {[%clk 0:01:34.8]} 25. Bg3 {[%clk 0:02:00]}
25... Rd7 {[%clk 0:01:35]} 26. Bb5 {[%clk 0:01:59.3]} 26... Rc8 {[%clk
0:01:34.4]} 27. Be5 {[%clk 0:01:54.9]} 27... Qf7 {[%clk 0:01:30.6]} 28. Bxc6
{[%clk 0:01:51.8]} 28... Rxc6 {[%clk 0:01:30.1]} 29. Qc3 {[%clk 0:01:44.7]}
29... Kh7 {[%clk 0:01:26.3]} 30. Nf1 {[%clk 0:01:40.6]} 30... h5 {[%clk
0:01:25.4]} 31. gxf5 {[%clk 0:01:36.9]} 31... Bxf5 {[%clk 0:01:22.7]} 32. Kf2
{[%clk 0:01:37]} 32... g4 {[%clk 0:01:16.8]} 33. hxg4 {[%clk 0:01:30.5]} 33...
hxg4 {[%clk 0:01:11.6]} 34. Ng3 {[%clk 0:01:29.8]} 34... gxf3 {[%clk 0:01:09.5]}
35. Rh1+ {[%clk 0:01:27.2]} 35... Kg8 {[%clk 0:01:05.7]} 36. Rcg1 {[%clk
0:01:16.6]} 36... Ng4+ {[%clk 0:01:01.6]} 37. Kf1 {[%clk 0:01:02.8]} 37... Qg6
{[%clk 0:00:59.7]} 38. Nxf5 {[%clk 0:00:53.1]} 38... exf5 {[%clk 0:00:59.6]} 39.
Rh8+ {[%clk 0:00:37.7]} 39... Kf7 {[%clk 0:00:59.1]} 40. Bf4 {[%clk 0:00:35.6]}
40... Ke6 {[%clk 0:00:49.5]} 41. Rgh1 {[%clk 0:00:32.8]} 41... Rcc7 {[%clk
0:00:47]} 42. R8h6 {[%clk 0:00:26.3]} 42... Nxh6 {[%clk 0:00:46.1]} 43. Rxh6
{[%clk 0:00:27.2]} 43... Qxh6 {[%clk 0:00:40.7]} 44. Bxh6 {[%clk 0:00:25]} 44...
Rh7 {[%clk 0:00:40.4]} 45. Bf4 {[%clk 0:00:22.2]} 45... Rcg7 {[%clk 0:00:40.1]}
46. c6 {[%clk 0:00:18.2]} 46... Rg2 {[%clk 0:00:36.9]} 47. e4 {[%clk 0:00:01.6]}
47... Rh1# {[%clk 0:00:35.7]} 0-1

[Event "*** Titled Tuesday Blitz"]
[Site "Chess.com"]
[Date "2020.12.01"]
[Round "7"]
[White "Praslov"]
[Black "zala02"]
[Result "0-1"]
[WhiteElo "2404"]
[BlackElo "2169"]
[TimeControl "180+1"]
[EndTime "11:16:04 PST"]
[Termination "zala02 won on time"]

1. d4 {[%clk 0:03:00.9]} 1... Nf6 {[%clk 0:02:59.8]} 2. Nf3 {[%clk 0:02:59.4]}
2... d5 {[%clk 0:02:59.8]} 3. c4 {[%clk 0:02:58.3]} 3... e6 {[%clk 0:02:59.1]}
4. Nc3 {[%clk 0:02:57.5]} 4... Bb4 {[%clk 0:02:59.3]} 5. e3 {[%clk 0:02:56]}
5... O-O {[%clk 0:02:59.5]} 6. Bd3 {[%clk 0:02:55.4]} 6... c5 {[%clk 0:02:56]}
7. O-O {[%clk 0:02:51.4]} 7... dxc4 {[%clk 0:02:42.3]} 8. Bxc4 {[%clk
0:02:50.7]} 8... Qc7 {[%clk 0:02:41.9]} 9. Qe2 {[%clk 0:02:42.8]} 9... Bxc3
{[%clk 0:02:37.3]} 10. bxc3 {[%clk 0:02:41.9]} 10... Nc6 {[%clk 0:02:37.8]} 11.
Ba3 {[%clk 0:02:16.6]} 11... b6 {[%clk 0:02:05.8]} 12. e4 {[%clk 0:02:12.9]}
12... Rd8 {[%clk 0:02:04.3]} 13. Rac1 {[%clk 0:02:02.9]} 13... Bb7 {[%clk
0:01:53]} 14. dxc5 {[%clk 0:01:54.1]} 14... bxc5 {[%clk 0:01:52]} 15. Bd3 {[%clk
0:01:25]} 15... Ne5 {[%clk 0:01:19]} 16. Nxe5 {[%clk 0:01:11.2]} 16... Qxe5
{[%clk 0:01:19.9]} 17. Rfe1 {[%clk 0:01:05.1]} 17... Rac8 {[%clk 0:01:13.4]} 18.
c4 {[%clk 0:01:02.6]} 18... Qg5 {[%clk 0:01:02.1]} 19. Bb2 {[%clk 0:00:44.3]}
19... Nh5 {[%clk 0:00:59.8]} 20. Qf3 {[%clk 0:00:31.6]} 20... Nf4 {[%clk
0:00:50.7]} 21. Bf1 {[%clk 0:00:31.1]} 21... Rd2 {[%clk 0:00:49.6]} 22. Bc3
{[%clk 0:00:25.3]} 22... Rxa2 {[%clk 0:00:43.9]} 23. g3 {[%clk 0:00:24.8]} 23...
Ng6 {[%clk 0:00:41.9]} 24. Bg2 {[%clk 0:00:21.8]} 24... h5 {[%clk 0:00:35.1]}
25. h4 {[%clk 0:00:18.4]} 25... Qh6 {[%clk 0:00:30.3]} 26. Re2 {[%clk
0:00:14.9]} 26... Rxe2 {[%clk 0:00:28.4]} 27. Qxe2 {[%clk 0:00:14.7]} 27...
Qxc1+ {[%clk 0:00:27.6]} 28. Kh2 {[%clk 0:00:13.5]} 28... Qxc3 {[%clk
0:00:27.2]} 29. Qxh5 {[%clk 0:00:10.6]} 29... Qxc4 {[%clk 0:00:25.6]} 30. Qg5
{[%clk 0:00:07.9]} 30... Bxe4 {[%clk 0:00:22.1]} 31. h5 {[%clk 0:00:06.1]} 31...
Bxg2 {[%clk 0:00:19.1]} 32. hxg6 {[%clk 0:00:05.1]} 32... Qf1 {[%clk 0:00:07.6]}
33. gxf7+ {[%clk 0:00:01.9]} 33... Kf8 {[%clk 0:00:08.1]} 0-1

[Event "*** Titled Tuesday Blitz"]
[Site "Chess.com"]
[Date "2020.12.01"]
[Round "7"]
[White "XDPS"]
[Black "Isajevsky_Anton"]
[Result "1-0"]
[WhiteElo "2774"]
[BlackElo "2572"]
[TimeControl "180+1"]
[EndTime "11:16:07 PST"]
[Termination "XDPS won by resignation"]

1. d4 {[%clk 0:03:00.9]} 1... d5 {[%clk 0:02:56]} 2. Bf4 {[%clk 0:03:00.8]} 2...
Nf6 {[%clk 0:02:55.2]} 3. e3 {[%clk 0:03:00.6]} 3... c5 {[%clk 0:02:55.5]} 4.
Nf3 {[%clk 0:03:00.1]} 4... Nc6 {[%clk 0:02:55.3]} 5. Nbd2 {[%clk 0:02:59.1]}
5... cxd4 {[%clk 0:02:53.9]} 6. exd4 {[%clk 0:02:59.1]} 6... Bf5 {[%clk
0:02:50.2]} 7. c3 {[%clk 0:02:58.8]} 7... e6 {[%clk 0:02:50.2]} 8. Qb3 {[%clk
0:02:58.3]} 8... Qc8 {[%clk 0:02:50.1]} 9. Be2 {[%clk 0:02:54.9]} 9... Be7
{[%clk 0:02:49.7]} 10. O-O {[%clk 0:02:54.6]} 10... O-O {[%clk 0:02:49.6]} 11.
Rfe1 {[%clk 0:02:53.3]} 11... h6 {[%clk 0:02:26.4]} 12. Ne5 {[%clk 0:02:47.7]}
12... Nxe5 {[%clk 0:02:24.9]} 13. dxe5 {[%clk 0:02:46.4]} 13... Ne4 {[%clk
0:02:17.3]} 14. Nf3 {[%clk 0:02:37.1]} 14... Bh7 {[%clk 0:01:56.8]} 15. Be3
{[%clk 0:02:21.4]} 15... Nc5 {[%clk 0:01:20]} 16. Qd1 {[%clk 0:02:18.7]} 16...
b5 {[%clk 0:01:11]} 17. Nd4 {[%clk 0:01:45.9]} 17... a6 {[%clk 0:01:07.6]} 18.
Rc1 {[%clk 0:01:31.9]} 18... Rb8 {[%clk 0:00:52]} 19. f4 {[%clk 0:01:23.3]}
19... Qd7 {[%clk 0:00:51.8]} 20. Kh1 {[%clk 0:01:20.9]} 20... Rfc8 {[%clk
0:00:43.9]} 21. Rf1 {[%clk 0:01:20.8]} 21... b4 {[%clk 0:00:44.1]} 22. cxb4
{[%clk 0:01:01.7]} 22... Rxb4 {[%clk 0:00:43.7]} 23. b3 {[%clk 0:01:02.3]} 23...
a5 {[%clk 0:00:41.9]} 24. Bg4 {[%clk 0:00:33.5]} 24... Nd3 {[%clk 0:00:29.4]}
25. Rxc8+ {[%clk 0:00:33.1]} 25... Qxc8 {[%clk 0:00:30.3]} 26. Qd2 {[%clk
0:00:29.5]} 26... Be4 {[%clk 0:00:26.7]} 27. Bf3 {[%clk 0:00:26.3]} 27... a4
{[%clk 0:00:25.2]} 28. a3 {[%clk 0:00:22]} 28... Rxd4 {[%clk 0:00:23.7]} 29.
Bxd4 {[%clk 0:00:22]} 29... axb3 {[%clk 0:00:24.6]} 30. Bxe4 {[%clk 0:00:19.9]}
30... dxe4 {[%clk 0:00:24.7]} 31. a4 {[%clk 0:00:20.4]} 31... Qc2 {[%clk
0:00:21.5]} 32. Qxc2 {[%clk 0:00:13.9]} 32... bxc2 {[%clk 0:00:21.7]} 33. Be3
{[%clk 0:00:14.6]} 33... Ba3 {[%clk 0:00:17.4]} 34. a5 {[%clk 0:00:14.9]} 34...
c1=Q {[%clk 0:00:17.5]} 35. Bxc1 {[%clk 0:00:14.5]} 35... Bxc1 {[%clk
0:00:18.2]} 36. Rxc1 {[%clk 0:00:09.1]} 36... Nxc1 {[%clk 0:00:18.3]} 37. a6
{[%clk 0:00:10]} 37... e3 {[%clk 0:00:10.8]} 38. a7 {[%clk 0:00:10.5]} 38... e2
{[%clk 0:00:10.7]} 39. a8=Q+ {[%clk 0:00:11.1]} 39... Kh7 {[%clk 0:00:11.4]} 40.
Qe4+ {[%clk 0:00:10.4]} 1-0

[Event "*** Titled Tuesday Blitz"]
[Site "Chess.com"]
[Date "2020.12.01"]
[Round "7"]
[White "Mikhail_Golubev"]
[Black "Vuk2000"]
[Result "1-0"]
[WhiteElo "2573"]
[BlackElo "2706"]
[TimeControl "180+1"]
[EndTime "11:16:08 PST"]
[Termination "Mikhail_Golubev won by resignation"]

1. e4 {[%clk 0:03:00.9]} 1... e6 {[%clk 0:03:00.2]} 2. d4 {[%clk 0:03:00]} 2...
d5 {[%clk 0:03:00.9]} 3. Nc3 {[%clk 0:03:00.3]} 3... Bb4 {[%clk 0:03:01.1]} 4.
e5 {[%clk 0:02:59.3]} 4... c5 {[%clk 0:03:01.2]} 5. a3 {[%clk 0:02:59.4]} 5...
Bxc3+ {[%clk 0:03:01.7]} 6. bxc3 {[%clk 0:03:00.3]} 6... Ne7 {[%clk 0:03:02.3]}
7. a4 {[%clk 0:03:00.1]} 7... b6 {[%clk 0:03:01.5]} 8. Bb5+ {[%clk 0:02:50.2]}
8... Bd7 {[%clk 0:02:58.1]} 9. Bd3 {[%clk 0:02:49.7]} 9... Nbc6 {[%clk
0:02:53.8]} 10. Nf3 {[%clk 0:02:47.8]} 10... cxd4 {[%clk 0:02:51]} 11. cxd4
{[%clk 0:02:43.7]} 11... Nb4 {[%clk 0:02:50.5]} 12. Ba3 {[%clk 0:02:28.6]} 12...
Nxd3+ {[%clk 0:02:46.6]} 13. Qxd3 {[%clk 0:02:18.5]} 13... h6 {[%clk 0:02:43.3]}
14. O-O {[%clk 0:02:18.3]} 14... O-O {[%clk 0:02:42.1]} 15. a5 {[%clk
0:02:15.8]} 15... a6 {[%clk 0:02:11.9]} 16. axb6 {[%clk 0:02:01.4]} 16... Bb5
{[%clk 0:02:11.3]} 17. Qb3 {[%clk 0:02:01.5]} 17... Qd7 {[%clk 0:01:02.2]} 18.
Rfb1 {[%clk 0:01:40.4]} 18... Rfb8 {[%clk 0:01:01.6]} 19. Bc5 {[%clk 0:01:04.1]}
19... Nc8 {[%clk 0:01:01.1]} 20. Nd2 {[%clk 0:01:04.6]} 20... Nxb6 {[%clk
0:00:58.8]} 21. Bxb6 {[%clk 0:01:02]} 21... Rxb6 {[%clk 0:00:58.3]} 22. c4
{[%clk 0:01:02.2]} 22... dxc4 {[%clk 0:00:46.6]} 23. Nxc4 {[%clk 0:01:02.7]}
23... Rbb8 {[%clk 0:00:26.3]} 24. Nd6 {[%clk 0:01:02.9]} 24... Qc6 {[%clk
0:00:26.2]} 25. Rc1 {[%clk 0:00:57.4]} 25... Qb6 {[%clk 0:00:13.4]} 26. Qf3
{[%clk 0:00:54.7]} 26... Rf8 {[%clk 0:00:12.8]} 27. h3 {[%clk 0:00:52.2]} 27...
Rab8 {[%clk 0:00:04.6]} 28. d5 {[%clk 0:00:44]} 28... exd5 {[%clk 0:00:04.4]}
29. Qxd5 {[%clk 0:00:44.9]} 29... Qd8 {[%clk 0:00:02.5]} 30. Rc3 {[%clk
0:00:36.5]} 30... Qd7 {[%clk 0:00:02.6]} 31. Rg3 {[%clk 0:00:33.7]} 31... Qe6
{[%clk 0:00:03.2]} 32. Qe4 {[%clk 0:00:29.9]} 32... Rbd8 {[%clk 0:00:03.3]} 33.
Nf5 {[%clk 0:00:28.9]} 33... g6 {[%clk 0:00:03.4]} 34. Nxh6+ {[%clk 0:00:28.3]}
34... Kh7 {[%clk 0:00:03.8]} 35. Qh4 {[%clk 0:00:25.5]} 35... Kg7 {[%clk
0:00:03.6]} 36. Qg5 {[%clk 0:00:24.1]} 36... Rh8 {[%clk 0:00:03.4]} 37. Nf5+
{[%clk 0:00:22.5]} 37... Kf8 {[%clk 0:00:01.5]} 38. Qxd8+ {[%clk 0:00:22.1]}
38... Be8 {[%clk 0:00:01.3]} 39. Qd6+ {[%clk 0:00:21]} 1-0

[Event "*** Titled Tuesday Blitz"]
[Site "Chess.com"]
[Date "2020.12.01"]
[Round "7"]
[White "TheCairnTerrier"]
[Black "malakismayil"]
[Result "0-1"]
[WhiteElo "2150"]
[BlackElo "2277"]
[TimeControl "180+1"]
[EndTime "11:16:08 PST"]
[Termination "malakismayil won by resignation"]

1. e4 {[%clk 0:03:00.9]} 1... e5 {[%clk 0:02:58.7]} 2. Nf3 {[%clk 0:03:00.4]}
2... Nc6 {[%clk 0:02:57.2]} 3. Bc4 {[%clk 0:03:00.2]} 3... Bc5 {[%clk
0:02:56.7]} 4. c3 {[%clk 0:03:00.2]} 4... Nf6 {[%clk 0:02:54.9]} 5. d3 {[%clk
0:03:00.3]} 5... d6 {[%clk 0:02:53.2]} 6. O-O {[%clk 0:02:59.1]} 6... O-O {[%clk
0:02:50.9]} 7. h3 {[%clk 0:02:53.7]} 7... h6 {[%clk 0:02:49.9]} 8. Bb3 {[%clk
0:02:50.9]} 8... Bb6 {[%clk 0:02:49]} 9. Nbd2 {[%clk 0:02:49]} 9... Be6 {[%clk
0:02:40.8]} 10. Nc4 {[%clk 0:02:48.3]} 10... Re8 {[%clk 0:02:29.5]} 11. Nxb6
{[%clk 0:02:41.3]} 11... axb6 {[%clk 0:02:30.4]} 12. Bc2 {[%clk 0:02:40.7]}
12... d5 {[%clk 0:02:26.1]} 13. Re1 {[%clk 0:02:34]} 13... Qd7 {[%clk 0:02:12]}
14. Nh2 {[%clk 0:02:30.3]} 14... Rad8 {[%clk 0:02:00.3]} 15. Qf3 {[%clk
0:02:30.3]} 15... dxe4 {[%clk 0:01:58.7]} 16. dxe4 {[%clk 0:02:30]} 16... Qe7
{[%clk 0:01:58]} 17. Be3 {[%clk 0:01:43.2]} 17... Rd7 {[%clk 0:01:51.9]} 18. Ng4
{[%clk 0:01:20.4]} 18... Nxg4 {[%clk 0:01:47.6]} 19. hxg4 {[%clk 0:01:21.3]}
19... Qh4 {[%clk 0:01:41.9]} 20. Qe2 {[%clk 0:00:50.9]} 20... Bxg4 {[%clk
0:01:29.8]} 21. f3 {[%clk 0:00:50.5]} 21... Be6 {[%clk 0:01:25.6]} 22. Red1
{[%clk 0:00:46]} 22... Red8 {[%clk 0:01:22.7]} 23. Rxd7 {[%clk 0:00:43.7]} 23...
Rxd7 {[%clk 0:01:23.6]} 24. Rd1 {[%clk 0:00:43.5]} 24... Qe7 {[%clk 0:01:16.6]}
25. a3 {[%clk 0:00:28.5]} 25... Na5 {[%clk 0:01:01.7]} 26. Ba4 {[%clk
0:00:28.4]} 26... Rxd1+ {[%clk 0:00:51.4]} 27. Qxd1 {[%clk 0:00:28.2]} 27... Nc4
{[%clk 0:00:46.1]} 28. Bc1 {[%clk 0:00:26.3]} 28... Qc5+ {[%clk 0:00:43.6]} 29.
Kf1 {[%clk 0:00:26.2]} 29... Nd6 {[%clk 0:00:32.4]} 30. Bb3 {[%clk 0:00:17.3]}
30... Qb5+ {[%clk 0:00:30.2]} 31. c4 {[%clk 0:00:13.8]} 31... Bxc4+ {[%clk
0:00:29.7]} 32. Bxc4 {[%clk 0:00:13.7]} 32... Qxc4+ {[%clk 0:00:30.6]} 33. Kg1
{[%clk 0:00:13.9]} 33... b5 {[%clk 0:00:29.8]} 34. Kh1 {[%clk 0:00:13.6]} 34...
b4 {[%clk 0:00:29.4]} 35. Be3 {[%clk 0:00:12.6]} 35... bxa3 {[%clk 0:00:27.8]}
36. bxa3 {[%clk 0:00:13.5]} 36... Qc3 {[%clk 0:00:26.9]} 37. Bc1 {[%clk
0:00:05.1]} 37... Kh7 {[%clk 0:00:26.4]} 38. f4 {[%clk 0:00:02.2]} 38... Nxe4
{[%clk 0:00:22.8]} 39. Bd2 {[%clk 0:00:01.6]} 0-1